bitfinex-derivatives/quotes_BTCF0:USTF0_20210104
["timestamp","ask_amount","ask_price","bid_price","bid_amount"]
[1609786192489,3.9017,31158.0,31149.0,0.23461608]
[1609786192689,0.00944589,31177.0,31149.0,0.23461608]
[1609786192890,5.12934589,31177.0,31149.0,0.23461608]
[1609786193293,0.02811222,31175.0,31150.0,0.2862]
[1609786193895,0.02811222,31175.0,31158.0,0.13632608]
[1609786194096,0.02811222,31175.0,31158.0,0.27204608]
[1609786194696,5.1199,31177.0,31158.0,0.27204608]
[1609786195795,0.13632608,31159.0,31158.0,0.27204608]
[1609786197796,0.13632608,31159.0,31158.0,0.13572]
[1609786199096,0.13632608,31159.0,31150.0,0.2862]
[1609786199898,3.9047,31160.0,31155.0,0.13632608]
[1609786200098,3.9047,31160.0,31150.0,0.2862]
[1609786200798,3.9047,31160.0,31149.0,0.09829]
[1609786200999,3.9047,31160.0,31135.0,3.9422]
[1609786201200,0.14102,31171.0,31136.0,0.2952]
[1609786201399,4.6065,31157.0,31136.0,0.2952]
[1609786201700,4.7421,31160.0,31136.0,0.40796]
[1609786201901,4.7421,31160.0,31140.0,0.13632608]
[1609786203902,0.14102,31171.0,31150.0,0.13632608]
[1609786204101,0.14102,31171.0,31150.0,0.26957608]
[1609786204302,0.02793656,31175.0,31150.0,0.26957608]
[1609786205403,0.02791652,31170.0,31150.0,0.26957608]
[1609786205804,0.02791652,31170.0,31169.0,0.13632608]
[1609786206103,0.02791652,31170.0,31169.0,0.23492608]
[1609786206505,0.02791652,31170.0,31169.0,0.0986]
[1609786206906,0.91849024,31178.0,31169.0,0.0986]
[1609786206907,0.00941872,31181.0,31169.0,0.0986]
[1609786208206,0.02808514,31183.0,31169.0,0.0986]
[1609786208406,0.13632608,31170.0,31169.0,0.0986]
[1609786210707,0.13632608,31170.0,31151.0,4.1799]
[1609786212410,0.13632608,31170.0,31163.0,0.13632608]
[1609786212612,3.8083,31176.0,31163.0,0.29432608]
[1609786214513,3.8083,31176.0,31168.0,0.13632608]
[1609786216314,0.00938575,31184.0,31168.0,0.13632608]
[1609786216514,0.13632608,31169.0,31168.0,0.13632608]
[1609786219618,0.13632608,31169.0,31163.0,0.158]
[1609786219820,0.13632608,31169.0,31157.0,5.2942]
[1609786220620,4.4481,31183.0,31161.0,0.13632608]
[1609786220823,4.4481,31183.0,31161.0,0.28183608]
[1609786221521,4.4481,31183.0,31161.0,0.14551]
[1609786222524,0.13632608,31162.0,31161.0,0.14551]
[1609786226028,0.13632608,31162.0,31150.0,0.26957608]
[1609786226628,0.13632608,31155.0,31150.0,0.26957608]
[1609786228728,0.13632608,31151.0,31150.0,0.26957608]
[1609786231229,0.13632608,31151.0,31150.0,0.13325]
[1609786231631,0.13632608,31151.0,31149.0,0.2778]
[1609786233933,4.2348,31150.0,31149.0,0.2778]
[1609786234433,4.2348,31150.0,31136.0,2.24734103]
[1609786234633,4.2348,31150.0,31139.0,0.13632608]
[1609786234833,0.15742,31170.0,31139.0,0.13632608]
[1609786235034,4.8111,31141.0,31139.0,0.13632608]
[1609786236636,0.13632608,31140.0,31139.0,0.13632608]
[1609786238937,4.8111,31141.0,31136.0,0.11276]
[1609786239339,4.8111,31141.0,31130.0,2.14106162]
[1609786239539,0.00937883,31160.0,31130.0,2.14106162]
[1609786239739,0.00937883,31160.0,31130.0,2.27399162]
[1609786240341,3.647,31148.0,31130.0,2.27399162]
[1609786240642,3.647,31148.0,31138.0,0.13632608]
[1609786240842,3.647,31148.0,31138.0,0.28398608]
[1609786242746,0.13632608,31139.0,31138.0,0.28398608]
[1609786246355,0.80922608,31139.0,31138.0,0.28398608]
[1609786248855,0.6729,31139.0,31138.0,0.28398608]
[1609786249657,0.00937063,31154.0,31138.0,0.28398608]
[1609786250259,0.127,31155.0,31138.0,0.28398608]
[1609786250658,0.127,31155.0,31144.0,0.13632608]
[1609786251260,0.02792538,31157.0,31144.0,0.13632608]
[1609786251460,0.02793623,31158.0,31144.0,0.13632608]
[1609786252662,0.02793623,31158.0,31138.0,0.14766]
[1609786253062,0.0279173,31159.0,31130.0,0.13293]
[1609786253263,0.0279173,31159.0,31133.0,4.8731]
[1609786253464,0.0279173,31159.0,31130.0,0.1178]
[1609786253665,0.0279173,31159.0,31137.0,5.30087]
[1609786253865,0.49240017,31160.0,31158.0,0.13632608]
[1609786254065,0.48660017,31160.0,31158.0,0.13632608]
[1609786254967,0.48660017,31160.0,31157.0,0.14646]
[1609786254968,0.66424984,31171.0,31157.0,0.14646]
[1609786255866,0.81181993,31174.0,31170.0,0.13632608]
[1609786256468,0.5181,31173.0,31170.0,0.13632608]
[1609786257870,0.13632608,31171.0,31170.0,0.13632608]
[1609786258271,0.13632608,31171.0,31169.0,0.08122608]
[1609786258472,4.0685,31170.0,31169.0,0.01792608]
[1609786258872,4.1652,31170.0,31157.0,0.14646]
[1609786259273,4.1652,31170.0,31143.0,3.9469]
[1609786259873,4.1652,31170.0,31145.0,0.13632608]
[1609786260176,4.1652,31170.0,31145.0,0.27542608]
[1609786260374,4.0685,31170.0,31145.0,0.27542608]
[1609786260775,4.0685,31170.0,31145.0,0.1391]
[1609786261477,0.46985099,31169.0,31145.0,0.1391]
[1609786261878,0.46985099,31169.0,31151.0,0.13632608]
[1609786262577,0.56555099,31169.0,31145.0,0.1391]
[1609786262780,4.0685,31170.0,31145.0,0.1391]
[1609786263682,4.0685,31170.0,31146.0,0.0972]
[1609786263882,0.13632608,31147.0,31146.0,0.0972]
[1609786265301,4.91202608,31147.0,31145.0,0.1391]
[1609786265689,4.91202608,31147.0,31137.0,0.10167]
[1609786265885,4.7757,31147.0,31138.0,0.13632608]
[1609786266285,4.7757,31147.0,31138.0,0.23952608]
[1609786267892,0.13632608,31139.0,31138.0,0.23952608]
[1609786268792,0.13632608,31139.0,31138.0,0.33502608]
[1609786268991,0.13632608,31139.0,31138.0,0.23952608]
[1609786269893,0.13632608,31139.0,31138.0,0.33552608]
[1609786270093,0.13632608,31139.0,31138.0,0.23952608]
[1609786270693,0.0969,31145.0,31138.0,0.1032]
[1609786271396,0.0969,31145.0,31129.0,2.13707818]
[1609786271797,0.0969,31145.0,31126.0,2.13789905]
[1609786271998,0.0969,31145.0,31135.0,0.13632608]
[1609786272498,0.0969,31145.0,31135.0,0.24265608]
[1609786273302,4.7757,31147.0,31135.0,0.24265608]
[1609786273499,4.7757,31147.0,31135.0,0.10633]
[1609786273900,0.13632608,31136.0,31135.0,0.24265608]
[1609786275103,0.23152608,31136.0,31135.0,0.24265608]
[1609786276004,0.13632608,31136.0,31135.0,0.24265608]
[1609786276903,0.23372608,31136.0,31135.0,0.24265608]
[1609786277304,0.23372608,31136.0,31135.0,0.10633]
[1609786277503,0.13632608,31136.0,31135.0,0.10633]
[1609786277903,0.13632608,31136.0,31135.0,0.13632608]
[1609786278306,0.13632608,31136.0,31135.0,0.29658608]
[1609786285710,0.13632608,31136.0,31135.0,0.16026]
[1609786286111,0.13632608,31136.0,31135.0,0.14672]
[1609786286714,4.01072608,31136.0,31126.0,2.14053453]
[1609786286911,0.13632608,31136.0,31133.0,0.10498]
[1609786287111,4.204,31134.0,31133.0,0.10498]
[1609786287512,4.204,31134.0,31133.0,0.08908]
[1609786287912,4.43702608,31134.0,31123.0,2.14202089]
[1609786288714,4.43702608,31134.0,31123.0,2.08342089]
[1609786289114,4.43702608,31134.0,31123.0,1.81712089]
[1609786289318,0.23302608,31134.0,31118.0,0.097]
[1609786289516,7.9803,31127.0,31109.0,2.3340226]
[1609786289715,0.13632608,31134.0,31109.0,2.3340226]
[1609786289915,4.81612608,31110.0,31109.0,2.3340226]
[1609786290116,4.81612608,31110.0,31103.0,2.33460098]
[1609786290715,0.13632608,31110.0,31103.0,2.33460098]
[1609786291315,0.0963,31109.0,31103.0,2.33460098]
[1609786291515,0.0963,31109.0,31104.0,0.0974]
[1609786291719,0.0949,31119.0,31104.0,0.25225]
[1609786291917,0.0949,31119.0,31118.0,0.13632608]
[1609786292116,0.0973,31122.0,31118.0,0.13632608]
[1609786292516,5.3986,31130.0,31118.0,0.13632608]
[1609786292715,0.0969,31130.0,31118.0,0.13632608]
[1609786292915,0.54625515,31132.0,31118.0,0.13632608]
[1609786293916,0.54625515,31132.0,31131.0,0.13632608]
[1609786294118,0.00382648,31134.0,31131.0,0.13632608]
[1609786294317,0.00382648,31134.0,31131.0,0.25990608]
[1609786295518,0.00382648,31134.0,31132.0,0.0954]
[1609786295719,0.91124808,31143.0,31131.0,0.25990608]
[1609786295720,0.00382844,31147.0,31131.0,0.25990608]
[1609786295919,0.00382844,31147.0,31138.0,0.13632608]
[1609786296418,0.00382844,31147.0,31138.0,0.29217608]
[1609786297421,0.00383944,31156.0,31138.0,0.29217608]
[1609786298022,0.00383944,31156.0,31138.0,0.15585]
[1609786298424,0.13632608,31139.0,31138.0,0.15585]
[1609786298623,0.00383944,31156.0,31138.0,0.15585]
[1609786299024,0.00384196,31158.0,31138.0,0.15585]
[1609786299225,0.00384196,31158.0,31139.0,0.0954]
[1609786300531,4.1896443,31159.0,31144.0,0.13632608]
[1609786300730,4.1896443,31159.0,31139.0,0.0954]
[1609786300930,4.3335643,31159.0,31139.0,0.0954]
[1609786302130,4.3335643,31159.0,31138.0,0.15585]
[1609786302333,0.00384393,31158.0,31138.0,0.15585]
[1609786302530,0.13632608,31139.0,31138.0,0.15585]
[1609786302731,0.13632608,31139.0,31136.0,0.13632608]
[1609786303131,0.13632608,31139.0,31137.0,0.0976]
[1609786303532,0.13632608,31139.0,31136.0,0.13632608]
[1609786305133,0.13632608,31139.0,31137.0,0.0949]
[1609786305334,0.13632608,31139.0,31136.0,0.13632608]
[1609786307334,0.13632608,31139.0,31137.0,0.0967]
[1609786307535,0.13632608,31139.0,31131.0,0.12358]
[1609786307837,0.13632608,31139.0,31111.0,0.0961]
[1609786308437,4.9861,31147.0,31136.0,0.13632608]
[1609786308636,4.9861,31147.0,31137.0,0.0952]
[1609786308838,4.9861,31147.0,31137.0,0.24145]
[1609786309239,4.9861,31147.0,31137.0,0.14625]
[1609786310344,4.9861,31147.0,31138.0,0.0976]
[1609786310542,0.13632608,31139.0,31138.0,0.0976]
[1609786313145,0.13632608,31139.0,31137.0,0.14625]
[1609786314045,0.13632608,31139.0,31135.0,0.13632608]
[1609786316353,0.13632608,31139.0,31135.0,4.91822608]
[1609786316753,0.10803,31152.0,31135.0,4.91822608]
[1609786316952,0.00387281,31154.0,31135.0,5.05167608]
[1609786317754,0.00387281,31154.0,31135.0,0.26977608]
[1609786317956,0.00387281,31154.0,31142.0,4.3526]
[1609786318354,0.00387458,31155.0,31142.0,4.49687]
[1609786318556,0.55369619,31157.0,31154.0,0.13632608]
[1609786318755,0.50089619,31157.0,31155.0,0.7039]
[1609786318955,0.47339619,31157.0,31155.0,0.84162]
[1609786319154,0.60599783,31161.0,31155.0,0.84162]
[1609786319556,0.66788406,31177.0,31155.0,0.84162]
[1609786320156,0.096,31176.0,31155.0,0.84162]
[1609786320558,0.096,31176.0,31168.0,0.13632608]
[1609786322157,0.66788406,31177.0,31168.0,0.13632608]
[1609786322657,0.13632608,31169.0,31168.0,0.13632608]
[1609786323060,0.66788406,31177.0,31166.0,0.1488]
[1609786323358,0.0953,31176.0,31166.0,0.1488]
[1609786324557,0.0953,31176.0,31175.0,0.13632608]
[1609786324759,0.0953,31176.0,31175.0,0.24613608]
[1609786325761,0.66788406,31177.0,31175.0,0.24613608]
[1609786326863,0.66788406,31177.0,31176.0,5.2677]
[1609786327761,0.66788406,31177.0,31175.0,0.24613608]
[1609786328165,0.66918771,31181.0,31175.0,0.24613608]
[1609786328562,0.13632608,31176.0,31175.0,0.24613608]
[1609786331967,0.67016404,31196.0,31175.0,0.24613608]
[1609786332566,0.67016404,31196.0,31180.0,0.13632608]
[1609786333969,0.67016404,31196.0,31180.0,4.68592608]
[1609786334568,0.13632608,31181.0,31180.0,4.68592608]
[1609786334968,0.13632608,31181.0,31180.0,4.5496]
[1609786335168,0.13632608,31181.0,31175.0,0.10981]
[1609786335369,0.13632608,31181.0,31174.0,0.0947]
[1609786335568,0.13632608,31181.0,31173.0,4.7753]
[1609786335769,0.66793837,31194.0,31173.0,4.7753]
[1609786335971,0.66793837,31194.0,31173.0,4.88004]
[1609786336571,0.66793837,31194.0,31181.0,0.13632608]
[1609786338574,0.66793837,31194.0,31187.0,0.13632608]
[1609786340276,0.82313859,31198.0,31187.0,0.13632608]
[1609786340673,0.13632608,31188.0,31187.0,0.13632608]
[1609786340873,0.13632608,31188.0,31180.0,0.13417]
[1609786342578,4.9918,31190.0,31181.0,0.13632608]
[1609786343178,0.15617,31198.0,31181.0,0.13632608]
[1609786343581,0.2775,31200.0,31181.0,0.13632608]
[1609786344581,0.13632608,31182.0,31181.0,0.13632608]
[1609786346085,0.13632608,31182.0,31180.0,0.13417]
[1609786346297,0.13632608,31182.0,31173.0,0.10474]
[1609786346495,0.13632608,31182.0,31165.0,4.3488]
[1609786346699,0.13632608,31168.0,31163.0,0.13632608]
[1609786347294,0.13632608,31168.0,31151.0,4.1118]
[1609786348284,0.73372608,31168.0,31151.0,4.1118]
[1609786348688,0.10036,31180.0,31160.0,0.13632608]
[1609786348886,3.679,31170.0,31160.0,0.24396608]
[1609786349387,3.679,31170.0,31160.0,0.10764]
[1609786350486,3.679,31170.0,31153.0,0.12759]
[1609786350686,3.679,31170.0,31158.0,0.13632608]
[1609786351089,3.81544,31170.0,31158.0,0.13632608]
[1609786351989,0.13644,31170.0,31158.0,0.13632608]
[1609786352686,0.13632608,31166.0,31164.0,0.13632608]
[1609786355488,0.13632608,31166.0,31153.0,0.12759]
[1609786355688,5.1899,31165.0,31145.0,4.297]
[1609786355889,0.13632608,31166.0,31129.0,2.30865962]
[1609786356090,3.6707,31156.0,31132.0,7.09147132]
[1609786356290,3.6707,31156.0,31132.0,7.21304132]
[1609786356492,3.6707,31156.0,31132.0,7.03594132]
[1609786356690,3.6707,31156.0,31145.0,0.13632608]
[1609786357092,0.1189,31161.0,31145.0,0.13632608]
[1609786357693,0.1189,31161.0,31144.0,4.8302]
[1609786358295,0.1189,31161.0,31143.0,0.10859]
[1609786358697,0.13632608,31144.0,31143.0,0.10859]
[1609786359998,0.13632608,31144.0,31132.0,2.23784132]
[1609786360197,4.8185,31133.0,31132.0,2.23784132]
[1609786360996,4.95482608,31133.0,31132.0,2.23784132]
[1609786361196,4.95482608,31133.0,31132.0,2.11627132]
[1609786361398,4.8185,31133.0,31132.0,2.11627132]
[1609786361596,4.8185,31133.0,31132.0,0.11567132]
[1609786362599,4.8185,31133.0,31132.0,0.05687132]
[1609786363400,4.95482608,31133.0,31132.0,0.05687132]
[1609786364400,4.95482608,31133.0,31108.0,0.13632608]
[1609786364602,0.13632608,31133.0,31108.0,0.13632608]
[1609786365400,0.16097,31140.0,31104.0,4.61437]
[1609786365801,0.16097,31140.0,31117.0,0.13632608]
[1609786366001,0.16097,31140.0,31117.0,0.29285608]
[1609786366604,0.16097,31140.0,31120.0,3.6421]
[1609786367003,0.54739753,31145.0,31120.0,3.6421]
[1609786367604,0.54795318,31148.0,31120.0,3.6421]
[1609786367804,0.54795318,31148.0,31129.0,0.13632608]
[1609786368004,0.54795318,31148.0,31129.0,0.24498608]
[1609786368405,0.54795318,31148.0,31130.0,0.0965]
[1609786369005,1.02268769,31160.0,31130.0,0.0965]
[1609786369006,0.54953404,31156.0,31130.0,0.0965]
[1609786369506,0.15874,31154.0,31130.0,0.0965]
[1609786369707,0.54953404,31156.0,31130.0,0.0965]
[1609786369909,0.54953404,31156.0,31137.0,0.13632608]
[1609786370307,0.65940423,31158.0,31134.0,3.9223]
[1609786370308,0.55073566,31158.0,31134.0,3.9223]
[1609786371909,0.55073566,31158.0,31149.0,0.13632608]
[1609786372109,0.55073566,31158.0,31149.0,0.27788608]
[1609786372309,0.55073566,31158.0,31150.0,5.0716]
[1609786372510,0.07633566,31158.0,31150.0,5.0716]
[1609786372710,0.66224466,31167.0,31150.0,5.0716]
[1609786373811,0.13632608,31151.0,31150.0,5.0716]
[1609786374013,0.13632608,31151.0,31149.0,0.14156]
[1609786377315,0.13632608,31151.0,31142.0,4.1635]
[1609786377818,0.13632608,31151.0,31150.0,0.13632608]
[1609786378719,0.13632608,31151.0,31150.0,4.29832608]
[1609786379417,0.13632608,31151.0,31150.0,4.162]
[1609786379618,0.1351417,31167.0,31150.0,4.162]
[1609786379820,0.1351417,31167.0,31157.0,0.13632608]
[1609786380019,0.1351417,31167.0,31160.0,0.7497]
[1609786380219,0.11647,31167.0,31157.0,0.13632608]
[1609786380420,0.01870294,31171.0,31162.0,3.597]
[1609786383822,0.92607315,31179.0,31162.0,3.597]
[1609786383823,0.01869141,31175.0,31162.0,3.597]
[1609786384022,0.01869141,31175.0,31166.0,0.13632608]
[1609786384323,0.01869141,31175.0,31162.0,3.597]
[1609786385324,0.01869141,31175.0,31163.0,0.0951]
[1609786385526,0.1429,31178.0,31163.0,0.0951]
[1609786385724,0.1429,31178.0,31163.0,0.21756]
[1609786385923,0.1429,31178.0,31163.0,0.12246]
[1609786386123,0.01869163,31182.0,31163.0,0.12246]
[1609786386323,0.01869163,31182.0,31177.0,0.13632608]
[1609786387324,0.66642151,31184.0,31177.0,0.13632608]
[1609786387325,0.18171314,31184.0,31177.0,0.88942608]
[1609786387825,0.81643712,31190.0,31177.0,0.88942608]
[1609786388424,0.81643712,31190.0,31184.0,0.13632608]
[1609786389026,1.29876762,31202.0,31184.0,0.13632608]
[1609786389027,1.29127646,31199.0,31184.0,0.13632608]
[1609786389726,1.29127646,31199.0,31184.0,4.09732608]
[1609786390328,0.13632608,31185.0,31184.0,4.09732608]
[1609786390530,0.13632608,31185.0,31184.0,0.13632608]
[1609786394734,0.13632608,31185.0,31180.0,5.19938]
[1609786395639,0.13632608,31185.0,31180.0,5.0536]
[1609786396337,0.13632608,31181.0,31180.0,5.0536]
[1609786396538,0.14376,31192.0,31180.0,5.0536]
[1609786396939,0.14376,31192.0,31181.0,0.0959]
[1609786397739,0.14376,31192.0,31180.0,5.0536]
[1609786398342,0.13632608,31181.0,31180.0,5.18992608]
[1609786399142,0.13632608,31181.0,31180.0,5.0536]
[1609786399342,0.13632608,31181.0,31171.0,0.10529]
[1609786399743,0.13632608,31181.0,31172.0,0.097]
[1609786400243,0.13632608,31181.0,31169.0,4.9077]
[1609786400445,0.13632608,31170.0,31169.0,4.9077]
[1609786400845,0.1096,31185.0,31169.0,4.9077]
[1609786402349,0.1096,31185.0,31180.0,0.13632608]
[1609786402655,0.1096,31185.0,31181.0,0.096]
[1609786404151,0.1096,31185.0,31180.0,0.13632608]
[1609786404351,0.13632608,31181.0,31180.0,0.13632608]
[1609786405751,0.13632608,31181.0,31180.0,0.23132608]
[1609786406753,0.13632608,31181.0,31180.0,0.13632608]
[1609786407657,0.14376,31192.0,31180.0,0.13632608]
[1609786407855,0.5600729,31198.0,31180.0,0.13632608]
[1609786408456,0.5600729,31198.0,31193.0,0.13632608]
[1609786408655,0.5600729,31198.0,31194.0,5.1878]
[1609786409456,0.55962764,31199.0,31194.0,5.1878]
[1609786410156,0.82070019,31203.0,31194.0,5.1878]
[1609786410456,0.82070019,31203.0,31202.0,0.13632608]
[1609786410756,0.13632608,31209.0,31202.0,0.13632608]
[1609786412457,0.13632608,31209.0,31208.0,0.13632608]
[1609786417666,0.13632608,31209.0,31198.0,0.11581]
[1609786418066,0.15084,31219.0,31125.0,0.356]
[1609786418266,4.8229,31211.0,31183.0,4.4151]
[1609786418468,4.96945,31211.0,31183.0,4.4151]
[1609786419067,4.96945,31211.0,31186.0,0.13632608]
[1609786419667,4.96945,31211.0,31183.0,4.4151]
[1609786420068,0.24265,31211.0,31167.0,2.1119254]
[1609786420268,4.6747,31203.0,31174.0,4.8572]
[1609786420469,0.24265,31211.0,31167.0,2.1119254]
[1609786420670,5.2999,31200.0,31169.0,4.8861]
[1609786421072,5.2999,31200.0,31177.0,0.13632608]
[1609786421269,5.2999,31200.0,31169.0,4.8861]
[1609786422371,5.97018649,31200.0,31169.0,4.8861]
[1609786423072,5.97018649,31200.0,31176.0,0.13632608]
[1609786423473,0.66943256,31199.0,31176.0,0.13632608]
[1609786424879,0.67169522,31196.0,31176.0,0.13632608]
[1609786425077,0.13632608,31177.0,31176.0,0.13632608]
[1609786426176,0.13632608,31177.0,31172.0,0.11069]
[1609786427174,0.13632608,31173.0,31172.0,0.11069]
[1609786428678,0.13632608,31173.0,31165.0,4.0889]
[1609786429077,0.13632608,31166.0,31165.0,4.0889]
[1609786429378,0.13632608,31166.0,31163.0,0.13632608]
[1609786431681,0.09997,31189.0,31164.0,3.6498]
[1609786431881,0.67177141,31190.0,31164.0,0.15005]
[1609786432082,0.67177141,31190.0,31171.0,3.7453]
[1609786432283,0.67177141,31190.0,31171.0,3.89269]
[1609786433284,0.67177141,31190.0,31186.0,0.13632608]
[1609786433689,0.67154439,31188.0,31186.0,0.13632608]
[1609786434789,0.1526,31196.0,31186.0,0.13632608]
[1609786435188,0.13632608,31187.0,31186.0,0.13632608]
[1609786435689,0.13632608,31187.0,31186.0,4.85302608]
[1609786436394,0.13632608,31187.0,31186.0,0.13632608]
[1609786438194,0.13632608,31187.0,31180.0,5.0246]
[1609786438393,0.13632608,31187.0,31171.0,0.14739]
[1609786438794,0.13632608,31187.0,31167.0,3.6887]
[1609786439196,4.0181,31196.0,31180.0,0.13632608]
[1609786440598,0.00955117,31195.0,31180.0,0.13632608]
[1609786441199,0.13632608,31181.0,31180.0,0.13632608]
[1609786443801,0.13632608,31181.0,31174.0,0.15843]
[1609786445002,0.13632608,31181.0,31167.0,3.6887]
[1609786445201,0.00953027,31192.0,31167.0,3.6887]
[1609786445602,0.00953027,31192.0,31164.0,0.15005]
[1609786445804,5.2738,31185.0,31174.0,0.13632608]
[1609786447706,5.2738,31185.0,31178.0,0.13632608]
[1609786447906,0.00953027,31192.0,31178.0,0.13632608]
[1609786449712,0.13632608,31179.0,31178.0,0.13632608]
[1609786451711,0.00948136,31189.0,31174.0,0.15506]
[1609786452113,0.00948794,31191.0,31174.0,0.15506]
[1609786452315,0.13632608,31183.0,31182.0,0.13632608]
[1609786452614,0.13632608,31183.0,31182.0,0.85882608]
[1609786453215,0.00949063,31193.0,31182.0,0.85882608]
[1609786453816,0.00949063,31193.0,31182.0,0.13632608]
[1609786454016,0.00949063,31193.0,31182.0,5.38432608]
[1609786454217,0.13632608,31183.0,31182.0,0.13632608]
[1609786454416,0.13632608,31183.0,31181.0,0.11329]
[1609786455720,0.13632608,31183.0,31174.0,0.15506]
[1609786456020,0.13632608,31183.0,31170.0,4.9709]
[1609786456221,3.9357,31188.0,31179.0,0.13632608]
[1609786456420,3.9357,31188.0,31180.0,0.0973]
[1609786456620,0.1526,31196.0,31180.0,0.0973]
[1609786456823,0.00946791,31198.0,31180.0,0.0973]
[1609786457023,0.00945264,31195.0,31180.0,0.0973]
[1609786457422,0.12102264,31195.0,31179.0,0.13632608]
[1609786458224,0.13632608,31180.0,31179.0,0.13632608]
[1609786459122,0.13632608,31180.0,31179.0,0.23122608]
[1609786460225,5.3159,31189.0,31179.0,0.0949]
[1609786460727,0.13632608,31180.0,31179.0,0.23122608]
[1609786461526,0.13632608,31180.0,31179.0,0.0949]
[1609786461726,0.13632608,31180.0,31173.0,0.15731]
[1609786461927,0.13632608,31180.0,28236.0,0.0312247]
[1609786462127,0.13632608,31180.0,31161.0,2.13829848]
[1609786462327,0.13632608,31180.0,31162.0,4.8018]
[1609786462528,0.13632608,31180.0,31161.0,2.13829848]
[1609786462727,0.12311,31188.0,31166.0,0.13632608]
[1609786462928,0.12311,31188.0,31166.0,0.26823608]
[1609786463128,0.12311,31188.0,31167.0,5.1834]
[1609786464132,0.0094473,31187.0,31167.0,5.1834]
[1609786464730,0.13632608,31168.0,31167.0,5.1834]
[1609786464930,0.13632608,31168.0,31166.0,0.26823608]
[1609786466733,4.9322,31182.0,31166.0,0.13191]
[1609786466933,4.9819,31181.0,31166.0,0.13191]
[1609786467133,0.00944641,31185.0,31166.0,0.13191]
[1609786467333,0.13632608,31167.0,31166.0,0.26823608]
[1609786467534,0.13632608,31167.0,31166.0,4.72573608]
[1609786467833,0.13632608,31167.0,31166.0,4.62993608]
[1609786468634,0.13632608,31167.0,31166.0,0.26823608]
[1609786469236,5.0312,31183.0,31166.0,0.13191]
[1609786469637,5.0312,31183.0,31165.0,0.0948]
[1609786469838,0.13632608,31166.0,31165.0,0.0948]
[1609786470037,0.13632608,31166.0,31164.0,0.13632608]
[1609786471240,0.13632608,31166.0,31165.0,0.0969]
[1609786471841,5.0312,31183.0,31165.0,0.0969]
[1609786471842,5.0312,31183.0,31165.0,0.24372]
[1609786472342,5.0312,31183.0,31166.0,0.13632608]
[1609786474349,0.13632608,31167.0,31166.0,0.13632608]
[1609786475447,5.0312,31183.0,31166.0,0.13632608]
[1609786476348,0.13632608,31167.0,31166.0,0.13632608]
[1609786476549,0.13632608,31167.0,31166.0,0.23372608]
[1609786477049,0.13632608,31167.0,31166.0,0.13632608]
[1609786477750,0.13632608,31167.0,31166.0,4.53642608]
[1609786478451,0.009456,31186.0,31166.0,4.4001]
[1609786478853,0.009456,31186.0,31169.0,0.13632608]
[1609786479653,0.009456,31186.0,31166.0,4.4001]
[1609786479857,0.5681057,31187.0,31166.0,4.4001]
[1609786480055,0.00954507,31187.0,31166.0,4.4001]
[1609786480855,0.00954507,31187.0,31168.0,0.13632608]
[1609786481057,0.00956589,31186.0,31168.0,0.13632608]
[1609786482857,0.13632608,31169.0,31168.0,0.13632608]
[1609786484862,3.8023,31178.0,31165.0,0.14682]
[1609786485061,0.00955802,31186.0,31165.0,0.14682]
[1609786485262,4.5718,31178.0,31165.0,0.14682]
[1609786485463,4.5718,31178.0,31168.0,0.13632608]
[1609786487366,0.13632608,31169.0,31168.0,0.13632608]
[1609786489365,4.5718,31178.0,31167.0,0.15695]
[1609786489867,4.5718,31178.0,31168.0,0.13632608]
[1609786491866,0.13632608,31169.0,31168.0,0.13632608]
[1609786493970,4.5718,31178.0,31167.0,0.15695]
[1609786494270,4.5718,31178.0,31160.0,2.14268626]
[1609786494471,4.5718,31178.0,31168.0,0.13632608]
[1609786494971,0.00955814,31185.0,31167.0,0.10785]
[1609786495171,3.6807,31171.0,31167.0,0.10785]
[1609786496372,0.14483,31179.0,31159.0,2.14305928]
[1609786496572,0.13632608,31160.0,31159.0,2.14305928]
[1609786496772,0.13632608,31160.0,31158.0,0.13368]
[1609786497171,0.13632608,31160.0,31158.0,0.11838]
[1609786497573,0.13632608,31160.0,31150.0,0.05]
[1609786497978,4.6723,31155.0,31150.0,0.05]
[1609786498475,0.13632608,31151.0,31150.0,0.05]
[1609786498874,4.10222608,31151.0,31150.0,0.05]
[1609786499175,4.10222608,31151.0,31142.0,1.73602334]
[1609786500477,0.13632608,31143.0,31142.0,1.73602334]
[1609786500876,4.17992608,31143.0,31142.0,1.73602334]
[1609786501079,0.13632608,31143.0,31142.0,1.73602334]
[1609786501277,4.1291,31146.0,31142.0,1.73602334]
[1609786501476,4.1291,31146.0,31142.0,1.72242334]
[1609786501676,4.1291,31146.0,31142.0,1.66482334]
[1609786501977,4.1291,31146.0,31142.0,1.66222334]
[1609786502177,4.1291,31146.0,31142.0,1.66062334]
[1609786502479,0.13632608,31143.0,31142.0,1.66062334]
[1609786502679,0.13632608,31143.0,31139.0,0.14143]
[1609786503079,5.13021,31156.0,31139.0,0.14143]
[1609786503278,0.14461,31156.0,31139.0,0.14143]
[1609786503878,0.14461,31156.0,31138.0,3.47173]
[1609786504079,0.14461,31156.0,31139.0,0.12602]
[1609786504480,0.14461,31156.0,31144.0,0.13632608]
[1609786505084,4.3132,31155.0,31144.0,0.13632608]
[1609786505686,4.3132,31155.0,31139.0,0.12602]
[1609786506084,4.3132,31155.0,31139.0,0.22172]
[1609786506484,4.3132,31155.0,31145.0,0.13632608]
[1609786506687,4.3132,31155.0,31146.0,0.0975]
[1609786506885,4.3132,31155.0,31145.0,0.13632608]
[1609786508486,0.13632608,31146.0,31145.0,0.13632608]
[1609786508885,0.13632608,31146.0,31139.0,0.12602]
[1609786509087,0.13632608,31146.0,31136.0,3.9436]
[1609786510386,0.13632608,31146.0,31137.0,0.0952]
[1609786510586,5.3451,31143.0,31137.0,0.0952]
[1609786511188,5.3451,31143.0,31141.0,0.13632608]
[1609786512388,0.12912,31156.0,31141.0,0.13632608]
[1609786512791,4.50942,31156.0,31141.0,0.13632608]
[1609786513192,0.13632608,31142.0,31141.0,0.13632608]
[1609786517499,4.50942,31156.0,31141.0,0.74132608]
[1609786517696,0.12912,31156.0,31141.0,0.13632608]
[1609786517897,0.14186,31163.0,31149.0,3.9207]
[1609786518297,0.0279249,31171.0,31149.0,4.06141]
[1609786519305,0.0279249,31171.0,31167.0,0.13632608]
[1609786519697,0.02803054,31180.0,31167.0,4.45122608]
[1609786521213,0.9222416,31188.0,31167.0,4.3149]